bitfinex/quotes_ETHUSD_20250808
["timestamp","ask_amount","ask_price","bid_price","bid_amount"]
[1754691417315,0.65608773,4040.1,4040.0,0.001]
[1754691417652,0.124,4040.1,4040.0,0.001]
[1754691418261,0.65608773,4040.1,4040.0,0.001]
[1754691418439,0.124,4040.1,4040.0,0.001]
[1754691418948,0.65608773,4040.1,4040.0,0.001]
[1754691420552,4.45808773,4040.1,4040.0,0.001]
[1754691421260,5.01937807,4040.1,4040.0,0.001]
[1754691421442,5.49157807,4040.1,4040.0,0.001]
[1754691421648,5.01937807,4040.1,4040.0,0.001]
[1754691421827,5.49157807,4040.1,4040.0,0.001]
[1754691422153,5.01937807,4040.1,4040.0,0.001]
[1754691422358,16.46405879,4040.1,4040.0,0.001]
[1754691422565,16.83345879,4040.1,4040.0,0.001]
[1754691423169,14.35827254,4040.1,4040.0,0.001]
[1754691423535,16.83345879,4040.1,4040.0,0.001]
[1754691423745,17.49917451,4040.1,4040.0,0.001]
[1754691423927,16.83345879,4040.1,4040.0,0.001]
[1754691425068,21.26770206,4040.1,4040.0,0.001]
[1754691425243,6.02530879,4039.9,4039.8,0.001]
[1754691425440,6.02530879,4039.9,4039.1,0.041]
[1754691425441,14.52290966,4039.4,4039.1,0.041]
[1754691425761,3.02573776,4039.2,4039.1,0.041]
[1754691425928,3.02573776,4039.2,4038.9,0.001]
[1754691425929,6.02586036,4039.0,4038.9,0.001]
[1754691426131,3.02598296,4038.8,4038.7,0.001]
[1754691426362,11.4083926,4038.8,4038.7,0.001]
[1754691426529,10.62153108,4038.8,4038.7,0.001]
[1754691426867,10.62153108,4038.8,4038.1,0.04]
[1754691426868,6.02610558,4038.6,4038.1,0.04]
[1754691427063,18.99494817,4038.6,4038.1,0.04]
[1754691427268,21.41177787,4038.6,4038.1,0.04]
[1754691427470,22.25337787,4038.6,4038.1,0.04]
[1754691427835,23.13792729,4038.6,4038.1,0.04]
[1754691428362,22.25337787,4038.6,4038.5,1e-08]
[1754691428536,23.13792729,4038.6,4038.5,1e-08]
[1754691429035,21.94292729,4038.6,4038.5,1e-08]
[1754691429230,24.86037787,4038.6,4038.5,1e-08]
[1754691429563,22.25437787,4038.6,4038.5,1e-08]
[1754691429934,23.13892729,4038.6,4038.5,1e-08]
[1754691430137,22.25437787,4038.6,4038.5,1e-08]
[1754691431672,9.1134834,4038.6,4038.5,1e-08]
[1754691431971,6.93419331,4038.6,4038.5,0.45340001]
[1754691432145,6.59002363,4038.6,4038.5,1e-08]
[1754691433042,4.11391805,4038.6,4038.5,1e-08]
[1754691433261,6.61485062,4038.6,4038.5,1e-08]
[1754691433441,6.59002363,4038.6,4038.5,1e-08]
[1754691433652,8.39357396,4038.6,4038.5,1e-08]
[1754691433852,8.84697396,4038.6,4038.5,1e-08]
[1754691434773,8.65905591,4038.6,4038.5,1e-08]
[1754691436904,8.65905591,4038.6,4038.5,0.45340001]
[1754691437045,6.18295033,4038.6,4038.5,0.45340001]
[1754691437240,0.124,4038.6,4038.5,0.92830001]
[1754691437457,3.926,4038.6,4038.5,3.4044669]
[1754691438490,3.926,4038.6,4038.5,0.92830001]
[1754691438665,3.926,4038.6,4038.5,0.45340001]
[1754691438847,4.3186,4038.6,4038.5,0.45340001]
[1754691439047,3.926,4038.6,4038.5,0.92830001]
[1754691439546,3.926,4038.6,4038.5,1e-08]
[1754691439752,6.89913257,4038.6,4038.5,1e-08]
[1754691440048,6.87430558,4038.6,4038.5,1e-08]
[1754691440250,7.24370558,4038.6,4038.5,1e-08]
[1754691440474,9.06540394,4038.6,4038.5,1e-08]
[1754691441378,9.61540394,4038.6,4038.5,1e-08]
[1754691441746,9.24600394,4038.6,4038.5,1e-08]
[1754691444449,12.61540394,4038.6,4038.5,1e-08]
[1754691444753,13.14445678,4038.6,4038.5,1e-08]
[1754691446172,12.77505678,4038.6,4038.5,1e-08]
[1754691447369,12.87425778,4038.6,4038.5,1e-08]
[1754691447707,13.24365778,4038.6,4038.5,1e-08]
[1754691448211,13.90472982,4038.6,4038.5,1e-08]
[1754691448373,2.47739378,4036.5,4034.5,2.9123648]
[1754691448572,2.47757791,4036.2,4035.2,0.4328]
[1754691448799,2.47794627,4035.6,4035.2,0.4328]
[1754691449012,14.85706773,4035.6,4035.2,0.4328]
[1754691449175,17.14801656,4035.6,4035.2,0.4328]
[1754691450384,14.67007029,4035.6,4035.5,0.4338]
[1754691450784,6.17277582,4035.6,4035.5,0.4338]
[1754691450987,4.38634842,4035.6,4035.5,0.001]
[1754691451304,4.41117541,4035.6,4035.5,0.001]
[1754691451507,4.35612699,4035.6,4035.5,0.001]
[1754691451679,3.88182699,4035.6,4035.5,0.001]
[1754691451883,3.88182699,4035.6,4035.5,0.4338]
[1754691452079,5.12073225,4035.6,4035.5,0.001]
[1754691452283,5.65008067,4035.6,4035.5,0.001]
[1754691452483,5.62525368,4035.6,4035.5,0.001]
[1754691452897,5.62525368,4035.6,4035.5,0.4338]
[1754691454206,8.10319995,4035.6,4035.5,0.001]
[1754691454503,5.62525368,4035.6,4035.5,0.001]
[1754691455114,8.10319995,4035.6,4035.5,0.001]
[1754691455414,8.76517947,4035.6,4035.5,0.001]
[1754691455614,8.94831181,4035.6,4035.5,0.001]
[1754691456312,6.47036554,4035.6,4035.5,0.001]
[1754691457209,8.94831181,4035.6,4035.5,0.001]
[1754691457508,6.47036554,4035.6,4035.5,0.001]
[1754691458495,6.59436554,4035.6,4035.5,0.001]
[1754691458798,9.50511181,4035.6,4035.5,0.001]
[1754691459002,9.50511181,4035.6,4035.5,0.4338]
[1754691459180,5.77926028,4035.6,4035.5,0.9289]
[1754691459379,5.11728076,4035.6,4035.5,0.9289]
[1754691459579,4.93414842,4035.6,4035.5,0.9289]
[1754691460014,4.4048,4035.6,4035.5,0.9289]
[1754691460310,3.973,4035.6,4035.5,3.40690768]
[1754691460610,3.973,4035.6,4035.5,0.9289]
[1754691461913,3.973,4035.6,4035.5,0.001]
[1754691462211,4.49766834,4035.6,4035.5,0.001]
[1754691462415,10.72002761,4035.6,4035.5,0.001]
[1754691462709,8.77142976,4035.6,4035.5,0.4338]
[1754691462911,5.77142976,4035.6,4035.5,0.9289]
[1754691463077,5.24776142,4035.6,4035.5,0.9289]
[1754691465619,5.24776142,4035.6,4035.5,0.001]
[1754691466115,12.41198721,4035.6,4035.5,0.001]
[1754691466314,14.30529778,4035.6,4035.5,0.001]
[1754691468998,15.1898472,4035.6,4035.5,0.001]
[1754691469198,14.30529778,4035.6,4035.5,0.001]
[1754691470000,15.18506046,4035.6,4035.5,0.001]
[1754691470197,20.25729778,4035.6,4035.5,0.001]
[1754691470608,28.75859725,4035.6,4035.5,0.001]
[1754691471214,29.63870441,4035.6,4035.5,0.001]
[1754691471434,28.75859725,4035.6,4035.5,0.001]
[1754691472940,28.75784263,4035.6,4035.5,0.001]
[1754691474222,30.08674816,4035.6,4035.5,0.001]
[1754691475229,30.2246923,4035.6,4035.5,0.001]
[1754691475533,28.8957819,4035.6,4035.5,0.001]
[1754691477439,2.47819191,4035.2,4035.1,0.041]
[1754691477729,7.01055197,4035.2,4035.1,0.041]
[1754691477939,6.98572498,4035.2,4035.1,0.041]
[1754691478135,5.06333307,4035.2,4035.1,0.5379]
[1754691478430,4.63114131,4035.2,4035.1,0.9774]
[1754691479150,5.96125398,4035.2,4035.1,0.9774]
[1754691481234,9.33716929,4035.2,4035.1,0.041]
[1754691481427,10.08185888,4035.2,4035.1,0.041]
[1754691482044,2.47825332,4035.1,4035.0,0.001]
[1754691482214,5.61204755,4035.1,4035.0,0.001]
[1754691482534,3.14539463,4035.1,4035.0,0.001]
[1754691482733,3.61072162,4035.1,4035.0,0.001]
[1754691483608,3.17022162,4035.1,4035.0,0.001]
[1754691484352,4.49995192,4035.1,4035.0,0.001]
[1754691484561,5.20433829,4035.1,4035.0,0.001]
[1754691484768,5.1795113,4035.1,4035.0,0.001]
[1754691485356,6.50919223,4035.1,4035.0,0.001]
[1754691486022,5.1795113,4035.1,4035.0,0.001]
[1754691486239,6.50898842,4035.1,4035.0,0.001]
[1754691489160,0.66708026,4035.1,4035.0,0.9374]
[1754691489328,4.50308026,4035.1,4035.0,0.9374]
[1754691489527,6.98133358,4035.1,4035.0,0.9374]
[1754691489776,4.50308026,4035.1,4035.0,0.9374]
[1754691490559,6.98133358,4035.1,4035.0,0.4405]
[1754691491267,9.0472837,4035.1,4035.0,0.4405]
[1754691491468,8.16123392,4035.1,4035.0,0.4405]
[1754691491659,9.04748401,4035.1,4035.0,0.4405]
[1754691491863,8.16123392,4035.1,4035.0,0.4405]
[1754691492365,9.04759801,4035.1,4035.0,0.001]
[1754691492570,9.04759724,4035.1,4035.0,0.4405]
[1754691492769,7.8676969,4035.1,4035.0,0.9374]
[1754691493741,7.86775117,4035.1,4035.0,0.9374]
[1754691495237,7.86775117,4035.1,4035.0,0.4405]
[1754691496471,16.36905064,4035.1,4035.0,0.001]
[1754691496766,18.39912279,4035.1,4035.0,0.001]
[1754691497349,18.39912279,4035.1,4035.0,0.4405]
[1754691497350,17.51275947,4035.1,4035.0,0.4405]
[1754691497672,18.39912279,4035.1,4035.0,0.4405]
[1754691498278,17.51275947,4035.1,4035.0,0.4405]
[1754691499269,18.17818561,4035.1,4035.0,0.4405]
[1754691501470,14.34218561,4035.1,4035.0,0.4405]
[1754691501675,18.16918561,4035.1,4035.0,0.4405]
[1754691502269,7.18863282,4035.1,4035.0,0.4405]
[1754691502511,5.15856067,4035.1,4035.0,0.9374]
[1754691502838,0.66713453,4035.1,4035.0,0.9374]
[1754691503044,4.3545938,4035.1,4035.0,0.9374]
[1754691508655,3.826,4035.1,4035.0,0.9374]
[1754691509556,0.6545938,4035.2,4035.0,3.415708]
[1754691509782,0.6545938,4035.2,4035.1,3.43615332]
[1754691509783,0.002,4035.2,4035.1,3.43615332]
[1754691509979,0.002,4035.7,4035.6,2.47794627]
[1754691510285,3.822,4035.7,4035.6,2.47794627]
[1754691510785,3.822,4035.7,4035.6,3.43584627]
[1754691512378,0.002,4035.7,4035.6,4.02723369]
[1754691512579,0.002,4035.7,4035.6,12.52853316]
[1754691512776,3.825,4035.7,4035.6,12.52853316]
[1754691514871,0.002,4035.7,4035.6,12.52853316]
[1754691517687,0.002,4035.7,4035.4,0.4706]
[1754691517999,0.002,4035.7,4035.6,2.47794627]
[1754691518597,0.002,4035.7,4035.2,0.4706]
[1754691518798,0.002,4035.7,4035.0,0.001]
[1754691518799,0.02682699,4035.7,4035.0,0.001]
[1754691518999,0.4859,4035.6,4035.0,0.001]
[1754691519165,3.825,4035.5,4035.0,0.001]
[1754691519580,0.4859,4035.4,4035.0,0.001]
[1754691519785,0.124,4035.2,4035.0,0.001]
[1754691520170,0.124,4035.2,4035.0,0.4716]
[1754691521305,0.124,4035.2,4035.0,0.001]
[1754691521505,0.02482699,4035.1,4035.0,0.001]
[1754691521712,0.124,4035.2,4035.0,0.001]
[1754691523926,3.825,4035.1,4035.0,0.001]
[1754691526292,3.825,4035.1,4035.0,0.4716]
[1754691528296,3.825,4035.1,4035.0,0.001]
[1754691529507,3.825,4035.1,4035.0,0.4716]
[1754691530423,3.825,4035.1,4035.0,0.001]
[1754691532027,3.825,4035.1,4035.0,0.4716]
[1754691532545,0.124,4035.2,4035.0,0.4716]
[1754691532725,0.124,4035.2,4035.0,2.47931342]
[1754691532932,3.816,4035.1,4035.0,2.47931342]
[1754691533090,0.002,4035.7,4035.0,1.34990412]
[1754691533293,0.124,4035.5,4035.2,2.47815712]
[1754691533530,0.124,4035.5,4035.3,0.4706]
[1754691534026,0.124,4035.5,4035.4,2.94866908]
[1754691535035,0.124,4035.5,4035.0,0.001]
[1754691535227,0.39422699,4035.4,4035.0,0.001]
[1754691535432,0.7149936,4035.3,4035.0,0.001]
[1754691535640,3.815,4035.2,4035.0,0.001]
[1754691535998,4.2767,4035.2,4035.0,0.001]
[1754691537801,0.4617,4035.1,4035.0,0.001]
[1754691540422,2.47825332,4035.1,4035.0,0.001]
[1754691540630,4.54351266,4035.1,4035.0,0.001]
[1754691540824,4.56833965,4035.1,4035.0,0.001]
[1754691541355,4.19893965,4035.1,4035.0,0.001]
[1754691541837,4.19902436,4035.1,4035.0,0.001]
[1754691542039,3.64326071,4035.1,4035.0,0.001]
[1754691542240,3.6680877,4035.1,4035.0,0.001]
[1754691542444,4.19897147,4035.1,4035.0,0.001]
[1754691542621,1.23419116,4035.1,4035.0,0.001]
[1754691542821,0.70330739,4035.1,4035.0,0.001]
[1754691543009,3.84182699,4035.1,4035.0,0.001]
[1754691544543,2.77291715,4035.1,4035.0,0.001]
[1754691545061,2.24182699,4035.1,4035.0,0.001]
[1754691545233,2.36582699,4035.1,4035.0,0.001]
[1754691545427,2.89707493,4035.1,4035.0,0.001]
[1754691547008,2.36582699,4035.1,4035.0,0.001]
[1754691549552,2.89707493,4035.1,4035.0,0.001]
[1754691551046,2.36582699,4035.1,4035.0,0.001]
[1754691551930,2.341,4035.1,4035.0,0.001]
[1754691553352,2.89707493,4035.1,4035.0,0.001]
[1754691553667,2.87224794,4035.1,4035.0,0.001]
[1754691553832,2.341,4035.1,4035.0,0.001]
[1754691563465,2.87224794,4035.1,4035.0,0.001]
[1754691565865,2.87224794,4035.1,4035.0,0.4471]
[1754691566274,2.87355596,4035.1,4035.0,0.4471]
[1754691566464,4.46855596,4035.1,4035.0,0.4471]
[1754691566648,3.936,4035.1,4035.0,0.4471]
[1754691567052,3.936,4035.1,4035.0,2.92541474]
[1754691567656,0.002,4035.2,4035.1,2.47825332]
[1754691567982,3.814,4035.2,4035.1,3.39735332]
[1754691568166,3.814,4035.2,4035.1,2.47825332]
[1754691568368,0.002,4035.2,4035.1,3.39735332]
[1754691568571,3.814,4035.2,4035.1,3.39735332]
[1754691568770,3.814,4035.2,4035.1,4.6768763]
[1754691573381,0.002,4035.2,4035.1,4.6768763]
[1754691574450,3.813,4035.2,4035.1,4.6768763]
[1754691574649,0.002,4035.2,4035.1,4.6768763]
[1754691577683,0.002,4035.2,4035.1,3.7577763]
[1754691577851,0.002,4035.2,4035.1,2.92435332]
[1754691578053,0.002,4035.2,4035.1,2.47825332]
[1754691579693,0.456,4035.2,4035.0,0.125]
[1754691579875,0.8234,4035.1,4035.0,0.001]
[1754691580186,3.45048031,4035.1,4035.0,0.001]
[1754691580486,5.44013209,4035.1,4035.0,0.001]
[1754691580684,6.44114024,4035.1,4035.0,0.001]
[1754691580984,6.31614024,4035.1,4035.0,0.001]
[1754691582062,8.42499356,4035.1,4035.0,0.001]
[1754691582386,8.79439356,4035.1,4035.0,0.001]
[1754691583689,6.31614024,4035.1,4035.0,0.001]
[1754691584654,5.94674024,4035.1,4035.0,0.001]
[1754691586495,5.94874024,4035.1,4035.0,0.001]
[1754691587896,8.42699356,4035.1,4035.0,0.001]
[1754691588364,8.52626256,4035.1,4035.0,0.001]
[1754691589195,6.04800924,4035.1,4035.0,0.001]
[1754691592772,5.02070414,4035.1,4035.0,0.001]
[1754691593102,4.489269,4035.1,4035.0,0.001]
[1754691593574,5.02070414,4035.1,4035.0,0.001]
[1754691593774,5.04553113,4035.1,4035.0,0.001]
[1754691594306,5.02070414,4035.1,4035.0,0.001]
[1754691594970,4.489269,4035.1,4035.0,0.001]
[1754691596495,4.035269,4035.1,4035.0,0.001]
[1754691597321,4.56670414,4035.1,4035.0,0.001]
[1754691597627,4.56502648,4035.1,4035.0,0.001]
[1754691598216,4.03359134,4035.1,4035.0,0.001]
[1754691598526,0.22359134,4035.1,4035.0,0.001]
[1754691598827,4.03359134,4035.1,4035.0,0.001]
[1754691600808,4.56502648,4035.1,4035.0,0.001]
[1754691601013,4.78649885,4035.1,4035.0,0.001]
[1754691601198,5.31793399,4035.1,4035.0,0.001]
[1754691605156,5.31793399,4035.1,4035.0,0.4493]
[1754691605314,4.56502648,4035.1,4035.0,0.4493]
[1754691605516,4.03359134,4035.1,4035.0,0.4493]
[1754691608138,4.56502648,4035.1,4035.0,0.4493]
[1754691614853,4.03359134,4035.1,4035.0,0.4493]
[1754691615194,4.56570662,4035.1,4035.0,0.4493]
[1754691615728,4.56570662,4035.1,4035.0,0.9418]
[1754691618457,4.56570662,4035.1,4035.0,0.4493]
[1754691624560,4.03359134,4035.1,4035.0,0.4493]
[1754691625360,4.56570662,4035.1,4035.0,0.4493]
[1754691625660,4.03359134,4035.1,4035.0,0.4493]
[1754691627569,4.56570662,4035.1,4035.0,0.4493]
[1754691627762,4.03359134,4035.1,4035.0,0.4493]
[1754691628066,4.03059134,4035.1,4035.0,0.4493]
[1754691628228,3.93132234,4035.1,4035.0,0.4493]
[1754691628429,0.12432234,4035.1,4035.0,2.47931474]
[1754691628670,0.12432234,4035.1,4035.0,3.68218621]
[1754691628844,3.93132234,4035.1,4035.0,3.68218621]
[1754691629244,3.809,4035.1,4035.0,3.68218621]
[1754691629444,3.809,4035.1,4035.0,3.80618621]
[1754691632166,0.002,4035.1,4035.0,6.80618621]
[1754691639154,0.002,4035.1,4035.0,15.30748568]
[1754691642192,1e-08,4035.2,4035.1,5.47825332]
[1754691642507,1e-08,4035.2,4035.1,8.46529003]
[1754691642660,1e-08,4035.2,4035.1,7.68079003]
[1754691642865,1e-08,4035.2,4035.1,8.58929003]
[1754691643297,0.002,4036.0,4035.6,3.55]
[1754691643605,0.002,4036.4,4036.0,5.47770069]
[1754691643760,0.002,4036.4,4036.0,5.77207216]
[1754691643955,0.002,4036.4,4036.0,6.68057216]
[1754691644156,0.002,4036.4,4036.1,3.0276393]
[1754691644362,0.002,4036.4,4036.3,14.528816]
[1754691644563,0.002,4036.4,4036.3,14.652816]
[1754691644800,0.002,4036.4,4036.3,17.08985271]
[1754691644960,0.002,4036.5,4036.4,6.02745515]
[1754691645162,0.002,4036.5,4036.4,6.93595515]
[1754691645458,1e-08,4036.5,4036.4,6.93595515]
[1754691647315,1e-08,4036.5,4036.4,5.47745515]
[1754691647786,1e-08,4036.5,4036.4,5.77182662]
[1754691647959,1e-08,4036.5,4036.4,6.20622662]
[1754691649300,1e-08,4036.5,4036.4,14.70752609]
[1754691650280,1e-08,4036.5,4036.4,14.27312609]
[1754691650484,1e-08,4036.5,4036.4,14.70752609]
[1754691650666,1e-08,4036.5,4036.4,15.18162609]
[1754691651394,1e-08,4036.5,4036.4,14.70752609]
[1754691651798,1e-08,4036.5,4036.4,14.27312609]
[1754691653792,1e-08,4036.5,4036.4,5.77182662]
[1754691653982,0.45250001,4036.5,4036.4,2.47745515]
[1754691654718,1e-08,4036.5,4036.4,2.47745515]
[1754691654869,0.86740001,4036.5,4036.4,2.47745515]
[1754691655286,0.86740001,4036.5,4036.0,2.60166254]
[1754691655508,0.8674,4036.4,4036.2,2.47752374]
[1754691655663,1e-08,4036.5,4036.3,2.47751114]
[1754691656220,1e-08,4036.5,4036.2,2.47756544]
[1754691656370,0.8674,4036.4,4036.2,2.47756544]
[1754691656574,0.498,4036.3,4036.2,2.47756544]
[1754691658574,0.9914,4036.3,4035.8,2.47776424]
[1754691658775,0.124,4035.9,4035.8,2.47776424]
[1754691658975,0.622,4035.9,4035.8,2.47776424]
[1754691659280,0.9914,4035.9,4035.7,2.4778771]
[1754691659487,0.9914,4035.9,4035.8,2.47782347]
[1754691659488,0.4934,4035.9,4035.8,2.47782347]
[1754691660240,0.9914,4035.9,4035.8,2.47782347]
[1754691661472,0.622,4035.9,4035.8,2.47782347]
[1754691661914,0.124,4035.9,4035.8,2.47782347]
[1754691665032,3.802,4036.4,4036.3,2.47748581]
[1754691665184,4.1823,4036.4,4036.3,2.47748581]
[1754691665516,4.6803,4036.4,4036.3,2.47748581]
[1754691665701,4.6803,4036.4,4036.2,2.4775633]
[1754691665907,4.3063,4036.4,4036.2,2.4775633]
[1754691666114,0.498,4036.3,4036.2,2.4775633]
[1754691668389,3.926,4036.4,4036.3,2.47751653]
[1754691668783,0.124,4036.4,4036.3,2.47751653]
[1754691669007,3.926,4036.4,4036.3,2.47751653]
[1754691669215,3.926,4036.4,4036.3,2.93181653]
[1754691669527,3.926,4036.4,4036.3,2.47751653]
[1754691671303,3.802,4036.4,4036.3,2.93181653]
[1754691672591,3.802,4036.4,4036.3,2.47751653]
[1754691677530,3.802,4036.4,4036.1,0.001]
[1754691677715,0.498,4036.3,4036.1,0.001]
[1754691678118,4.1714,4036.4,4036.2,2.47754974]
[1754691678315,3.802,4036.4,4036.2,2.47754974]
[1754691678532,0.124,4036.3,4036.2,2.47754974]
[1754691678695,0.622,4036.3,4036.1,2.47862144]
[1754691679429,0.622,4036.3,4036.2,2.47757791]
[1754691682216,0.124,4036.3,4036.2,2.47757791]
[1754691682931,0.124,4036.3,4036.2,2.93187791]
[1754691683902,0.124,4036.3,4036.2,2.47757791]
[1754691686006,3.924,4036.3,4036.2,2.47757791]
[1754691686309,3.924,4036.3,4036.2,2.90737791]
[1754691686938,3.924,4036.3,4036.1,0.001]
[1754691686939,3.924,4036.3,4036.1,2.4786343]
[1754691687127,3.924,4036.3,4036.2,2.47757791]
[1754691690325,3.924,4036.3,4036.2,2.90737791]
[1754691691552,3.924,4036.3,4036.2,2.47757791]
[1754691692413,3.924,4036.3,4036.2,2.90737791]
[1754691694315,3.924,4036.3,4036.2,2.47757791]
[1754691698053,3.924,4036.3,4036.2,2.90737791]
[1754691700748,0.124,4036.3,4036.2,2.90737791]
[1754691700928,3.922,4036.3,4036.2,2.90737791]
[1754691701129,0.124,4036.3,4036.2,2.90737791]
[1754691701329,3.922,4036.3,4036.2,2.90737791]
[1754691701939,0.124,4036.3,4036.2,2.90737791]
[1754691702139,3.922,4036.3,4036.2,2.90737791]
[1754691703162,0.124,4036.3,4036.2,2.90737791]
[1754691703737,3.922,4036.3,4036.2,2.90737791]
[1754691703935,3.922,4036.3,4036.2,3.37057791]
[1754691704161,3.922,4036.3,4036.2,0.893]
[1754691704360,3.922,4036.3,4036.2,0.4298]
[1754691704831,3.922,4036.3,4036.2,2.90737791]
[1754691705546,3.922,4036.3,4036.2,0.4298]
[1754691706987,3.922,4036.3,4035.5,2.47796667]
[1754691706988,2.47825332,4035.1,4034.9,0.001]
[1754691707276,2.47849902,4034.7,4034.6,0.001]
[1754691707475,6.95385245,4034.7,4034.6,0.001]
[1754691707645,10.80154254,4034.7,4034.6,0.001]
[1754691707829,6.44554254,4034.7,4034.6,0.001]
[1754691708033,10.19403588,4034.7,4034.6,0.001]
[1754691708235,10.66633188,4034.7,4034.6,0.001]
[1754691708461,11.32737531,4034.7,4034.6,0.001]
[1754691709402,10.66633188,4034.7,4034.6,0.001]
[1754691711477,12.89885476,4034.7,4034.6,0.001]
[1754691711655,14.5026822,4034.7,4034.6,0.001]
[1754691712592,13.94812163,4034.7,4034.6,0.001]
[1754691713566,13.94712163,4034.7,4034.6,0.001]
[1754691714794,7.13312163,4034.7,4034.6,0.001]
[1754691715097,8.81115733,4034.7,4034.6,0.001]
[1754691717008,8.93515733,4034.7,4034.6,0.001]
[1754691723816,8.83586133,4034.7,4034.6,0.001]
[1754691724492,2.54436231,4034.7,4034.6,0.001]
[1754691724686,6.35136231,4034.7,4034.6,0.9587]
[1754691725014,6.35036231,4034.7,4034.6,0.9587]
[1754691725213,2.54436231,4034.7,4034.6,0.9587]
[1754691725423,6.35036231,4034.7,4034.6,0.9587]
[1754691726008,2.54436231,4034.7,4034.6,0.9587]
[1754691726316,6.35036231,4034.7,4034.6,3.43726045]
[1754691726526,6.35036231,4034.7,4034.6,0.9587]
[1754691727120,2.54436231,4034.7,4034.6,0.9587]
[1754691727284,6.34936231,4034.7,4034.6,0.9587]
[1754691728221,2.54436231,4034.7,4034.6,0.9587]
[1754691728418,6.34936231,4034.7,4034.6,0.9587]
[1754691735524,6.87895453,4034.7,4034.6,0.9587]
[1754691736222,6.34436231,4034.7,4034.6,0.9587]
[1754691736426,6.8747013,4034.7,4034.6,0.9587]
[1754691741221,6.8747013,4034.7,4034.6,0.4624]
[1754691741631,6.8747013,4034.7,4034.6,0.001]
[1754691743215,6.8747013,4034.7,4034.6,0.4624]
[1754691748323,6.8747013,4034.7,4034.6,0.9566]
[1754691748632,6.8247013,4034.7,4034.6,0.9566]
[1754691750154,6.8247013,4034.7,4034.6,0.4624]
[1754691752354,2.83686187,4034.7,4034.6,0.952]
[1754691752564,2.83686187,4034.7,4034.6,3.43056045]
[1754691752565,6.51286187,4034.7,4034.6,3.43056045]
[1754691752773,6.51286187,4034.7,4034.6,4.02478396]
[1754691753833,2.71286187,4034.7,4034.6,4.02478396]
[1754691754042,6.51286187,4034.7,4034.6,4.02478396]
[1754691754263,2.71286187,4034.7,4034.6,4.02478396]
[1754691754425,6.51286187,4034.7,4034.6,4.02478396]
[1754691754936,2.71286187,4034.7,4034.6,4.02478396]
[1754691755149,6.51186187,4034.7,4034.6,4.02478396]
[1754691755466,6.51186187,4034.7,4034.6,3.43056045]
[1754691755665,6.51186187,4034.7,4034.6,0.001]
[1754691755833,10.39190456,4034.7,4034.6,0.001]
[1754691756033,9.73276089,4034.7,4034.6,0.001]
[1754691756670,10.61161912,4034.7,4034.6,0.001]
[1754691756859,12.08384195,4034.7,4034.6,0.001]
[1754691757272,11.20498372,4034.7,4034.6,0.001]
[1754691758568,14.34323721,4034.7,4034.6,0.001]
[1754691758945,14.89323721,4034.7,4034.6,0.001]
[1754691759370,2.47856045,4034.6,4034.5,0.031]
[1754691759544,5.53899798,4034.6,4034.5,0.031]
[1754691759751,6.01117099,4034.6,4034.5,0.031]
[1754691759950,7.33775052,4034.6,4034.5,0.031]
[1754691760146,6.59535052,4034.6,4034.5,0.031]
[1754691760380,10.25609703,4034.6,4034.5,0.031]
[1754691760682,8.9305175,4034.6,4034.5,0.031]
[1754691760853,9.6729175,4034.6,4034.5,0.031]
[1754691761674,11.9305175,4034.6,4034.5,0.031]
[1754691763081,12.0298085,4034.6,4034.5,0.031]
[1754691765650,12.91297774,4034.6,4034.5,0.031]
[1754691765980,12.81368674,4034.6,4034.5,0.031]
[1754691769386,11.9305175,4034.6,4034.5,0.031]
[1754691770156,8.1305175,4034.6,4034.5,0.031]
[1754691770567,11.9305175,4034.6,4034.5,0.031]
[1754691770883,8.1305175,4034.6,4034.5,0.031]
[1754691771288,11.9305175,4034.6,4034.5,0.031]
[1754691772079,8.1305175,4034.6,4034.5,0.031]
[1754691772473,11.9305175,4034.6,4034.5,0.031]
[1754691772679,12.81368674,4034.6,4034.5,0.031]
[1754691772904,9.01368674,4034.6,4034.5,0.031]
[1754691773094,12.81368674,4034.6,4034.5,0.031]
[1754691773271,9.01368674,4034.6,4034.5,0.031]
[1754691773591,12.81368674,4034.6,4034.5,0.031]
[1754691774491,12.91268674,4034.6,4034.5,0.031]
[1754691774789,13.28568674,4034.6,4034.5,0.031]
[1754691774994,13.38497774,4034.6,4034.5,0.031]
[1754691775371,12.5018085,4034.6,4034.5,0.031]
[1754691775698,13.0518085,4034.6,4034.5,0.031]
[1754691775901,14.37838803,4034.6,4034.5,0.031]
[1754691776402,13.0518085,4034.6,4034.5,0.031]
[1754691776605,12.6788085,4034.6,4034.5,0.031]
[1754691776761,12.5798085,4034.6,4034.5,0.031]
[1754691778474,14.00538803,4034.6,4034.5,0.031]
[1754691778675,12.6788085,4034.6,4034.5,0.031]
[1754691779180,14.00538803,4034.6,4034.5,0.031]
[1754691779896,16.61538803,4034.6,4034.5,0.031]
[1754691780096,13.90638803,4034.6,4034.5,0.031]
[1754691781494,13.46018509,4034.6,4034.3,0.001]
[1754691781695,13.46018509,4034.6,4034.2,0.001]
[1754691781696,14.53004423,4034.3,4034.2,0.001]
[1754691781861,6.0288062,4034.2,4034.1,1e-08]
[1754691782071,7.43951134,4034.2,4034.1,1e-08]
[1754691782267,9.99480143,4034.2,4034.1,1e-08]
[1754691783994,9.85683528,4034.2,4034.1,1e-08]
[1754691784214,9.99480745,4034.2,4034.1,1e-08]
[1754691784913,9.25240745,4034.2,4034.1,1e-08]
[1754691785214,9.35172345,4034.2,4034.1,1e-08]
[1754691786585,6.02886765,4034.1,4033.5,0.4296]
[1754691786785,12.29958951,4034.1,4033.5,0.4296]